Body Name,Body,Service Level,Expense Type,Expense Code,Narrative,Date,Transaction Number,Amount,Capital and Revenue,Supplier Name,Supplier ID
South Ribble Council,http://statistics.data.gov.uk/doc/local-authority/30UN,Housing,Cap Grant- Improve Grants,C570,DFG WORKS TO BATHROOM AT ADDRESS REDACTED COST 4400.00,01/08/2018,0000441170,"4,400.00",Revenue,ABBI PROPERTY SERVICES LTD,131357
South Ribble Council,http://statistics.data.gov.uk/doc/local-authority/30UN,Housing,Cap Grant- Improve Grants,C570,DFG WORKS TO BATHROOM AT ADDRESS REDACTED AS PER YOUR QUOT COST 3800.00,31/08/2018,0000441850,"3,800.00",Revenue,ABBI PROPERTY SERVICES LTD,131357
South Ribble Council,http://statistics.data.gov.uk/doc/local-authority/30UN,Area 1 - Penwortham Western Parishes,Operational Furniture & Equip,4013,Transfer hard drive from St Andrews  to Pope Lane CCTV. Remove camera module from inside casing and leave housing on site,13/08/2018,0000440507,385.00,Revenue,ADT FIRE & SECURITY PLC,131052
South Ribble Council,http://statistics.data.gov.uk/doc/local-authority/30UN,Property Services,Rep & Maint Fixed Plant,2035,To install 3 x HD CCTV cameras at Leyland market as per quotation Q147537,29/08/2018,0000441212,"1,085.00",Revenue,ADT FIRE & SECURITY PLC,131052
South Ribble Council,http://statistics.data.gov.uk/doc/local-authority/30UN,Area 2 - Waste Transport/Eastern & Central Teams,Materials General,4040,2 X SUCTION NOZZLES HORSHOES - BIN 502 2 X SUCTION NOZZLE SKIRTS - BIN 503 2 X BRUSH ARM BALL JOINTS - BIN,17/08/2018,0000440992,"1,763.17",Revenue,AEBI SCHMIDT UK LTD,00085672
South Ribble Council,http://statistics.data.gov.uk/doc/local-authority/30UN,Neighbourhood Admin & Support,Capital Expenditure,C230,32 lengths 90mm lattice wire chair spacer 2.00mtr long 15 mts 10mm round bar 4 sheets A393 reinforcing square mesh 4.800mts,22/08/2018,0000441658,340.00,Revenue,Ainscough Ltd T/A Ainscough Metals,132160
South Ribble Council,http://statistics.data.gov.uk/doc/local-authority/30UN,Shared Assurance Services,Consultancy Fees,4548,"First Year Annual Registration including 1 surveillance visit day , booked for 23rd January 2019",01/08/2018,0000441189,870.00,Revenue,ALCUMUS ISOQAR LTD,131571
South Ribble Council,http://statistics.data.gov.uk/doc/local-authority/30UN,Neighbourhood Admin & Support,Grounds Maint Cntrctrs Chgs,4657,"SUPPLY AND INSTALLATION OF ELECTRICAL SYSTEMS, WORDEN PARK DISPLAY HOUSE.",03/08/2018,0000441224,"3,449.00",Revenue,Alitex Ltd,132080
South Ribble Council,http://statistics.data.gov.uk/doc/local-authority/30UN,Revenues Plus,Financial,4811,post office trans,08/08/2018,0000441334,"1,067.64",Revenue,ALLPAY LTD,00122276
South Ribble Council,http://statistics.data.gov.uk/doc/local-authority/30UN,Revenues Plus,Financial,4811,paypoint,08/08/2018,0000441334,161.01,Revenue,ALLPAY LTD,00122276
South Ribble Council,http://statistics.data.gov.uk/doc/local-authority/30UN,Revenues Plus,Financial,4811,webconnect,08/08/2018,0000441334,47.72,Revenue,ALLPAY LTD,00122276
South Ribble Council,http://statistics.data.gov.uk/doc/local-authority/30UN,Housing,Cap Grant- Improve Grants,C570,DFG WORKS FOR BATHROOM WORK TO BE COMPLETED AT ADDRESS REDACTED AS PER QUOTE  COST 5356.48,29/08/2018,0000441767,"5,356.48",Revenue,APG DOMESTIC SERVICES,00061463
South Ribble Council,http://statistics.data.gov.uk/doc/local-authority/30UN,Information Services,Peripherals,4248,APT BACS iConnect 3 user licence and APT BACS iConnect additional licence - annual charge commencing September 2018,15/08/2018,0000441543,750.00,Revenue,APT LTD,130261
South Ribble Council,http://statistics.data.gov.uk/doc/local-authority/30UN,Property Services,Rep & Maint Fixed Plant,2031,To undertake works on the emergency lighting system at the Civic Centre as detailed in the quotation dated 19th July 2018.,13/08/2018,0000441452,"1,527.25",Revenue,BELEC ELECTRICAL LTD,130290
South Ribble Council,http://statistics.data.gov.uk/doc/local-authority/30UN,Property Services,Rep & Maint Premises,2020,"To wire 2 RCD sockets to market stall via a credit meter at Leyland Market, as per quotation dated 24th July 2018",13/08/2018,0000441504,455.00,Revenue,BELEC ELECTRICAL LTD,130290
South Ribble Council,http://statistics.data.gov.uk/doc/local-authority/30UN,Property Services,Rep & Maint Premises,2020,Annual Contract  2018 / 2019 for electrical testing & fan convector maintenance at all sports pavilions,31/08/2018,0000441791,358.00,Revenue,BELEC ELECTRICAL LTD,130290
South Ribble Council,http://statistics.data.gov.uk/doc/local-authority/30UN,Property Services,Rep & Maint Premises,2020,Annual Contract  2018 / 2019 for electrical testing & fan convector maintenance at all sports pavilions,31/08/2018,0000441792,354.95,Revenue,BELEC ELECTRICAL LTD,130290
South Ribble Council,http://statistics.data.gov.uk/doc/local-authority/30UN,Development Enterprise & Comm Mgnt,Other Misc,485K,Taste of Leyland 2018 Food event  Saturday 25th August 2018  please provide as per quote 281000889 Hire for generator X6 ,24/08/2018,0000441614,419.05,Revenue,Brandon Hire Limited,132322
South Ribble Council,http://statistics.data.gov.uk/doc/local-authority/30UN,Area 3 - Parks/Leyland East West,Capital Expenditure,C230,VARIOUS MATERIALS (WOOD/SCREWS),17/08/2018,0000441537,271.67,Revenue,C & W BERRY LTD,00015231
South Ribble Council,http://statistics.data.gov.uk/doc/local-authority/30UN,Area 3 - Parks/Leyland East West,Grounds Maint Cntrctrs Chgs,4657,300 metal strips for shin rails,22/08/2018,0000441626,407.65,Revenue,C & W BERRY LTD,00015231
South Ribble Council,http://statistics.data.gov.uk/doc/local-authority/30UN,Area 3 - Parks/Leyland East West,Grounds Maint Cntrctrs Chgs,4657,Drainage materials,22/08/2018,0000441693,505.16,Revenue,C & W BERRY LTD,00015231
South Ribble Council,http://statistics.data.gov.uk/doc/local-authority/30UN,Area 3 - Parks/Leyland East West,Rep & Maint Premises,2020,"Structural Engineering Consultancy for The Brew House, Worden Park",13/08/2018,0000441398,900.00,Revenue,Capstone Consulting Engineeers Ltd,131694
South Ribble Council,http://statistics.data.gov.uk/doc/local-authority/30UN,Homelessness,Contributions,4730,ADDRESS REDACTED July 2018 31 days x 35.28 1093.68  net,03/08/2018,0000441247,"1,093.68",Revenue,CHORLEY BOROUGH COUNCIL,00017352
South Ribble Council,http://statistics.data.gov.uk/doc/local-authority/30UN,Property Services,Rep & Maint Fixed Plant,2035,2018/2019 intruder alarm maintenance and monitoring at the Civic Centre as per contract number 1360109,17/08/2018,0000440572,"2,095.05",Revenue,CHUBB LTD,00090625
South Ribble Council,http://statistics.data.gov.uk/doc/local-authority/30UN,Property Services,Rep & Maint Fixed Plant,2035,monitoring service. Credit Note 7022300 received to cancel,17/08/2018,0000441565,"2,157.90",Revenue,CHUBB LTD,00090625
South Ribble Council,http://statistics.data.gov.uk/doc/local-authority/30UN,Property Services,Rep & Maint Premises,2020,as per your quote 618495 Supply Install and Commission a 10 Channel Paging Unit to transmit PA Activations from the 1st floor,24/08/2018,0000441724,"1,950.00",Revenue,CHUBB LTD,00090625
South Ribble Council,http://statistics.data.gov.uk/doc/local-authority/30UN,Area 2 - Waste Transport/Eastern & Central Teams,Materials General,4040,AD BLUE PUMP - JFC10943 - PJ62UCG - TH,08/08/2018,0000441340,675.51,Revenue,CICELEY COMMERCIALS LTD,00059381
South Ribble Council,http://statistics.data.gov.uk/doc/local-authority/30UN,Area 2 - Waste Transport/Eastern & Central Teams,Materials General,4040,surcharge,08/08/2018,0000441340,135.36,Revenue,CICELEY COMMERCIALS LTD,00059381
South Ribble Council,http://statistics.data.gov.uk/doc/local-authority/30UN,Area 2 - Waste Transport/Eastern & Central Teams,Materials General,4040,1 X ADBLUE PUMP - 1 X MAP SENSOR - PJ62UCL - 10944,15/08/2018,0000441519,836.89,Revenue,CICELEY COMMERCIALS LTD,00059381
South Ribble Council,http://statistics.data.gov.uk/doc/local-authority/30UN,Area 2 - Waste Transport/Eastern & Central Teams,Materials General,4040,1 THROTTLE PEDAL - PJ62 UCG - JFC.......... - AW,22/08/2018,0000441672,261.32,Revenue,CICELEY COMMERCIALS LTD,00059381
South Ribble Council,http://statistics.data.gov.uk/doc/local-authority/30UN,Area 2 - Waste Transport/Eastern & Central Teams,Materials General,4040,1 ADBLUE PUMP - PJ62 UCM - JFC10970 - AW,24/08/2018,0000441676,815.14,Revenue,CICELEY COMMERCIALS LTD,00059381
South Ribble Council,http://statistics.data.gov.uk/doc/local-authority/30UN,Development Enterprise & Comm Mgnt,Other Misc,4851,Please provide security for Leyland Festival 16 June 2018,13/08/2018,0000441454,"1,519.50",Revenue,Circle Security Ltd,132264
South Ribble Council,http://statistics.data.gov.uk/doc/local-authority/30UN,Environmental Health,Operational Furniture & Equip,4010,Quotation Number 25068 - Recalibration - per NAME REDACTED,15/08/2018,0000441361,413.00,Revenue,CIRRUS RESEARCH PLC,131450
South Ribble Council,http://statistics.data.gov.uk/doc/local-authority/30UN,HR & Communications,Balance Sheet,0030,CHILDCARE VOUCHERS - JULY 2018,06/08/2018,0000440822,"2,863.35",Revenue,COMPUTERSHARE VOUCHER SERVICES,00116499
South Ribble Council,http://statistics.data.gov.uk/doc/local-authority/30UN,HR & Communications,Balance Sheet,0030,CHILDCARE VOUCHERS - AUGUST 2018,06/08/2018,0000441299,"2,586.50",Revenue,COMPUTERSHARE VOUCHER SERVICES,00116499
South Ribble Council,http://statistics.data.gov.uk/doc/local-authority/30UN,Property Services,Rep & Maint Premises,2020,To supply & fit 2 external ply flush doors to ADDRESS REDACTED as detailed in the quotation e-mailed  dated 15th May,01/08/2018,0000441173,662.64,Revenue,COOPER BESPOKE JOINERY LTD,00104456
South Ribble Council,http://statistics.data.gov.uk/doc/local-authority/30UN,Property Services,Rep & Maint Premises,2020,materials,01/08/2018,0000441173,483.84,Revenue,COOPER BESPOKE JOINERY LTD,00104456
South Ribble Council,http://statistics.data.gov.uk/doc/local-authority/30UN,Housing,Cap Grant- Improve Grants,C570,DFG WORKS FOR EXTENSION FOR BEDROOM AND BATHROOM AS PER OT REFERRAL AND QUOTE SUPPLIED ,08/08/2018,0000441404,"8,000.00",Revenue,Cornerstone Building & Maintenance Ltd,131383
South Ribble Council,http://statistics.data.gov.uk/doc/local-authority/30UN,Housing,Cap Grant- Improve Grants,C570,DFG WORKS FOR EXTENSION FOR BEDROOM AND BATHROOM AS PER OT REFERRAL AND QUOTE SUPPLIED,24/08/2018,0000441744,"8,282.00",Revenue,Cornerstone Building & Maintenance Ltd,131383
South Ribble Council,http://statistics.data.gov.uk/doc/local-authority/30UN,Revenues Plus,Postage,4291,Mail Services - Postage - July  to September 2018,03/08/2018,0000441321,923.84,Revenue,CRITIQOM,131053
South Ribble Council,http://statistics.data.gov.uk/doc/local-authority/30UN,Revenues Plus,Postage,4291,Mail Services - Postage - July  to September 2018,13/08/2018,0000441423,265.28,Revenue,CRITIQOM,131053
South Ribble Council,http://statistics.data.gov.uk/doc/local-authority/30UN,Revenues Plus,Postage,4291,Mail Services - Postage - July  to September 2018,24/08/2018,0000441608,398.35,Revenue,CRITIQOM,131053
South Ribble Council,http://statistics.data.gov.uk/doc/local-authority/30UN,HR & Communications,Balance Sheet,0030,NAME REDACTED Cyclescheme Request Store: Broadgate Cycle Store (Penwortham),03/08/2018,0000441174,558.33,Revenue,CYCLESCHEME CO  UK,130237
South Ribble Council,http://statistics.data.gov.uk/doc/local-authority/30UN,Information Services,Peripherals,4245,Annual purchase order for Disaster Recovery Services for period 01/04/18 - 31/03/19,13/08/2018,0000441263,"2,597.38",Revenue,DAISY IT CONTINUITY and RESILIENCE SERVICES LTD,131708
South Ribble Council,http://statistics.data.gov.uk/doc/local-authority/30UN,Development Enterprise & Comm Mgnt,Sports Dev Expenses,4894,"Circus juggler performance act 2,300.00",03/08/2018,0000441244,"2,070.00",Revenue,Dani Winters - Winter Works Entertainment,132545
South Ribble Council,http://statistics.data.gov.uk/doc/local-authority/30UN,Area 2 - Waste Transport/Eastern & Central Teams,Materials General,4040,shackle pin -shackle pin bush -nut -anti roll bar bush V065 KRE JFC 10845,08/08/2018,0000441324,258.44,Revenue,DENNIS EAGLE LTD,00019774
South Ribble Council,http://statistics.data.gov.uk/doc/local-authority/30UN,Area 3 - Parks/Leyland East West,Grounds Maint Cntrctrs Chgs,4657,2 x 10ft gates 3 x hanging posts 1 x closing post 1 x drop over catch 2 x clamp on drop bolts,13/08/2018,0000441411,298.40,Revenue,DEREK FOX & SONS (TIMBER) LTD,00021694
South Ribble Council,http://statistics.data.gov.uk/doc/local-authority/30UN,Property Services,Rep & Maint Fixed Plant,2037,To service the fire gas suppression system  2018 / 2019 at the Civic centre as per quotation. Contact the caretakers for access.,03/08/2018,0000441259,765.00,Revenue,DES Electrical Services Ltd,131437
South Ribble Council,http://statistics.data.gov.uk/doc/local-authority/30UN,Healthy Communities,Capital Expenditure,C230,Drainage Works at Penwortham Holme Recreation Centre,17/08/2018,0000441566,"61,665.79",Revenue,DUNCAN ROSS LIMITED,130432
South Ribble Council,http://statistics.data.gov.uk/doc/local-authority/30UN,Neighbourhood Admin & Support,Materials General,4040,BLACK SACKS `KEEP SOUTH RIBBLE TIDY` in white - 18x29x39`` 100g,01/08/2018,0000441188,"2,513.70",Revenue,Durasak Ltd,132141
South Ribble Council,http://statistics.data.gov.uk/doc/local-authority/30UN,Area 3 - Parks/Leyland East West,Grounds Maint Cntrctrs Chgs,4657,Please supply- 2 x evergreen seats with green cast iron frames and black slats @ 586.00 each,13/08/2018,0000441426,"1,172.00",Revenue,EARTH ANCHORS LTD,00020925
South Ribble Council,http://statistics.data.gov.uk/doc/local-authority/30UN,Area 3 - Parks/Leyland East West,Grounds Maint Cntrctrs Chgs,4657,Please supply- Carriage @ 92.00,13/08/2018,0000441426,92.00,Revenue,EARTH ANCHORS LTD,00020925
South Ribble Council,http://statistics.data.gov.uk/doc/local-authority/30UN,Information Services,Peripherals,4260,,13/08/2018,0000441455,"2,469.12",Revenue,EE Ltd,131653
South Ribble Council,http://statistics.data.gov.uk/doc/local-authority/30UN,Information Services,Peripherals,4260,,13/08/2018,0000441455,180.96,Revenue,EE Ltd,131653
South Ribble Council,http://statistics.data.gov.uk/doc/local-authority/30UN,Area 2 - Waste Transport/Eastern & Central Teams,Waste Disposal Charges,5110,Subsistence charge for 2018-19 Permit No 054192.,24/08/2018,0000441579,"1,230.25",Revenue,ENVIRONMENT AGENCY,00009755
South Ribble Council,http://statistics.data.gov.uk/doc/local-authority/30UN,Property Services,Rep & Maint Premises,2020,Alterations top floor Civic Centre as per option 2,01/08/2018,0000440357,"17,343.35",Revenue,Eric Wright FM Ltd,132438
South Ribble Council,http://statistics.data.gov.uk/doc/local-authority/30UN,Neighbourhood Admin & Support,Materials General,4040,40 x RED BIN LIDS,24/08/2018,0000441733,"1,271.26",Revenue,ESE WORLD LTD,130042
South Ribble Council,http://statistics.data.gov.uk/doc/local-authority/30UN,Area 2 - Waste Transport/Eastern & Central Teams,Printing,4127,Green Waste Permit Printing and Distribution 2018 - 19,03/08/2018,0000441295,667.10,Revenue,Euro Print Labels,132447
South Ribble Council,http://statistics.data.gov.uk/doc/local-authority/30UN,Area 2 - Waste Transport/Eastern & Central Teams,Materials General,4040,"Sole Plate Block, PO16 HMV, JFC11025 (NAME REDACTED)",17/08/2018,0000441362,553.21,Revenue,F R SHARROCK LTD,00034539
South Ribble Council,http://statistics.data.gov.uk/doc/local-authority/30UN,Area 2 - Waste Transport/Eastern & Central Teams,Materials General,4040,1 MOTOR P012 FOJ JFC10931,08/08/2018,0000441393,389.03,Revenue,F R SHARROCK LTD,00034539
South Ribble Council,http://statistics.data.gov.uk/doc/local-authority/30UN,Area 2 - Waste Transport/Eastern & Central Teams,Materials General,4040,1 BOTTOM BLADE BLOCK PO16 HMX JFC10954,08/08/2018,0000441393,562.21,Revenue,F R SHARROCK LTD,00034539
South Ribble Council,http://statistics.data.gov.uk/doc/local-authority/30UN,Area 2 - Waste Transport/Eastern & Central Teams,Materials General,4040,"1 SPACER, 1 LATCH, 2 WASHERS, 1 NUT & 1 BOLT TMR02A3 JFC11018",08/08/2018,0000441393,270.28,Revenue,F R SHARROCK LTD,00034539
South Ribble Council,http://statistics.data.gov.uk/doc/local-authority/30UN,Area 2 - Waste Transport/Eastern & Central Teams,Materials General,4040,BLOWER REBUILD KIT - PO61MJJ - JFC10713 - BO,17/08/2018,0000441451,"1,340.21",Revenue,F R SHARROCK LTD,00034539
South Ribble Council,http://statistics.data.gov.uk/doc/local-authority/30UN,Area 2 - Waste Transport/Eastern & Central Teams,External Contractors Charges,4570,REISIDUAL WASTE COLLECTIONS JULY 2018,13/08/2018,0000441432,"42,482.57",Revenue,FCC Environment Services (UK) Ltd,131612
South Ribble Council,http://statistics.data.gov.uk/doc/local-authority/30UN,Area 2 - Waste Transport/Eastern & Central Teams,External Contractors Charges,4570,DRY RECYCLABLE NON-TERRACED COLLECTIONS JULY 2018,13/08/2018,0000441432,"43,506.64",Revenue,FCC Environment Services (UK) Ltd,131612
South Ribble Council,http://statistics.data.gov.uk/doc/local-authority/30UN,Area 2 - Waste Transport/Eastern & Central Teams,External Contractors Charges,4570,DRY RECYCLABLE TERRACED COLLECTIONS JULY 2018,13/08/2018,0000441432,"2,066.66",Revenue,FCC Environment Services (UK) Ltd,131612
South Ribble Council,http://statistics.data.gov.uk/doc/local-authority/30UN,Area 2 - Waste Transport/Eastern & Central Teams,External Contractors Charges,4570,ORGANIC WASTE COLLECTION NON TERRACED JULY 2018,13/08/2018,0000441432,"30,151.91",Revenue,FCC Environment Services (UK) Ltd,131612
South Ribble Council,http://statistics.data.gov.uk/doc/local-authority/30UN,Area 2 - Waste Transport/Eastern & Central Teams,External Contractors Charges,4570,SCHEDULE 2 PROPERTIES JULY 2018,13/08/2018,0000441432,"1,725.43",Revenue,FCC Environment Services (UK) Ltd,131612
South Ribble Council,http://statistics.data.gov.uk/doc/local-authority/30UN,Area 2 - Waste Transport/Eastern & Central Teams,External Contractors Charges,4570,COMMERCIAL WASTE COLLECTIONS JULY 2018,13/08/2018,0000441432,"6,761.80",Revenue,FCC Environment Services (UK) Ltd,131612
South Ribble Council,http://statistics.data.gov.uk/doc/local-authority/30UN,Area 2 - Waste Transport/Eastern & Central Teams,External Contractors Charges,4570,BULKY WASTE COLLECTIONS JULY 2018,13/08/2018,0000441432,934.56,Revenue,FCC Environment Services (UK) Ltd,131612
South Ribble Council,http://statistics.data.gov.uk/doc/local-authority/30UN,Area 2 - Waste Transport/Eastern & Central Teams,External Contractors Charges,4570,WEEE COLLECTIONS JULY 2018,13/08/2018,0000441432,349.34,Revenue,FCC Environment Services (UK) Ltd,131612
South Ribble Council,http://statistics.data.gov.uk/doc/local-authority/30UN,Area 2 - Waste Transport/Eastern & Central Teams,External Contractors Charges,4570,CLINICAL WASTE COLLECTIONS JULY 2018,13/08/2018,0000441432,594.92,Revenue,FCC Environment Services (UK) Ltd,131612
South Ribble Council,http://statistics.data.gov.uk/doc/local-authority/30UN,Area 2 - Waste Transport/Eastern & Central Teams,External Contractors Charges,4570,REPLACEMENT BINS JULY 2018,13/08/2018,0000441432,"5,000.00",Revenue,FCC Environment Services (UK) Ltd,131612
South Ribble Council,http://statistics.data.gov.uk/doc/local-authority/30UN,Area 2 - Waste Transport/Eastern & Central Teams,External Contractors Charges,4570,ADDITIONAL PROPERTIES JULY 2018,13/08/2018,0000441432,"4,763.77",Revenue,FCC Environment Services (UK) Ltd,131612
South Ribble Council,http://statistics.data.gov.uk/doc/local-authority/30UN,Area 2 - Waste Transport/Eastern & Central Teams,Balance Sheet,0030,retention refuse,13/08/2018,0000441432,"-2,880.62",Revenue,FCC Environment Services (UK) Ltd,131612
South Ribble Council,http://statistics.data.gov.uk/doc/local-authority/30UN,Area 2 - Waste Transport/Eastern & Central Teams,Balance Sheet,0030,retetion recycling,13/08/2018,0000441432,"-3,786.26",Revenue,FCC Environment Services (UK) Ltd,131612
South Ribble Council,http://statistics.data.gov.uk/doc/local-authority/30UN,Area 2 - Waste Transport/Eastern & Central Teams,External Contractors Charges,4570,Additional Bulky Waste Collections JULY 2018,22/08/2018,0000441659,583.74,Revenue,FCC Environment Services (UK) Ltd,131612
South Ribble Council,http://statistics.data.gov.uk/doc/local-authority/30UN,Area 2 - Waste Transport/Eastern & Central Teams,External Contractors Charges,4570,Additional WEEE Collections JULY 2018,22/08/2018,0000441659,379.68,Revenue,FCC Environment Services (UK) Ltd,131612
South Ribble Council,http://statistics.data.gov.uk/doc/local-authority/30UN,Area 2 - Waste Transport/Eastern & Central Teams,Balance Sheet,0030,RETENTION JULY,22/08/2018,0000441659,-48.17,Revenue,FCC Environment Services (UK) Ltd,131612
South Ribble Council,http://statistics.data.gov.uk/doc/local-authority/30UN,Information Services,Peripherals,4248,Mobile Forms App - annual licence renewal for period 30/09/18 - 29/09/19,01/08/2018,0000441235,"5,789.00",Revenue,FIRMSTEP,00114022
South Ribble Council,http://statistics.data.gov.uk/doc/local-authority/30UN,Area 2 - Waste Transport/Eastern & Central Teams,External Contractors Charges,4570,RENEWAL OF LOCAL AUTHORITY MEMBERSHIP (TOM HICKS) MEMBERSHIP NO. 8882,08/08/2018,0000441410,"1,032.00",Revenue,FREIGHT TRANSPORT ASSOCIATION,00022127
South Ribble Council,http://statistics.data.gov.uk/doc/local-authority/30UN,Neighbourhood Admin & Support,Vehicle Running Costs,3131,Fuel w/c 23.07.18,08/08/2018,0000441248,299.58,Revenue,Fuel Card Services,132365
South Ribble Council,http://statistics.data.gov.uk/doc/local-authority/30UN,Housing,Cap Grant- Improve Grants,C570,DFG WORKS TO BATHROOM AT ADDRESS REDACTED COST 3960.00,29/08/2018,0000441766,"3,960.00",Revenue,G McGAVOCK LTD,131311
South Ribble Council,http://statistics.data.gov.uk/doc/local-authority/30UN,Development Enterprise & Comm Mgnt,Professional Fees,4510,Bikeability Coaching at Various Schools 2505,03/08/2018,0000441037,"1,875.00",Revenue,Gareth Piper,132576
South Ribble Council,http://statistics.data.gov.uk/doc/local-authority/30UN,Development Enterprise & Comm Mgnt,Professional Fees,4510,Bikeability Coaching at Various Schools 2505,03/08/2018,0000441045,630.00,Revenue,Gareth Piper,132576
South Ribble Council,http://statistics.data.gov.uk/doc/local-authority/30UN,Planning,Other Misc,4851,12 x rolls of paper - 841 x 110 metres = 222.84  6 x rolls of paper - 594 x 110 metres = 93.90,29/08/2018,0000441476,316.74,Revenue,GCS UK ASSOCIATES LTD,130671
South Ribble Council,http://statistics.data.gov.uk/doc/local-authority/30UN,Neighbourhood Admin & Support,Materials General,4040,ELWOOD - RECYCLED MATERIAL SEAT,15/08/2018,0000441530,"1,568.49",Revenue,GLASDON UK LTD,130953
South Ribble Council,http://statistics.data.gov.uk/doc/local-authority/30UN,Neighbourhood Admin & Support,Materials General,4040,STANFORD SEAT,15/08/2018,0000441530,829.56,Revenue,GLASDON UK LTD,130953
South Ribble Council,http://statistics.data.gov.uk/doc/local-authority/30UN,Shared Financial Services,Financial,4816,,06/08/2018,0000440209,"1,042.74",Revenue,GLOBAL PAYMENTS (GPUK LLP),131178
South Ribble Council,http://statistics.data.gov.uk/doc/local-authority/30UN,Shared Financial Services,Financial,4816,,06/08/2018,0000440209,7.00,Revenue,GLOBAL PAYMENTS (GPUK LLP),131178
South Ribble Council,http://statistics.data.gov.uk/doc/local-authority/30UN,Shared Financial Services,Financial,4816,,06/08/2018,0000440210,"2,510.15",Revenue,GLOBAL PAYMENTS (GPUK LLP),131178
South Ribble Council,http://statistics.data.gov.uk/doc/local-authority/30UN,Shared Financial Services,Financial,4816,,06/08/2018,0000440210,7.00,Revenue,GLOBAL PAYMENTS (GPUK LLP),131178
South Ribble Council,http://statistics.data.gov.uk/doc/local-authority/30UN,Shared Financial Services,Financial,4816,,06/08/2018,0000440211,"1,667.20",Revenue,GLOBAL PAYMENTS (GPUK LLP),131178
South Ribble Council,http://statistics.data.gov.uk/doc/local-authority/30UN,Shared Financial Services,Financial,4816,,06/08/2018,0000440211,7.00,Revenue,GLOBAL PAYMENTS (GPUK LLP),131178
South Ribble Council,http://statistics.data.gov.uk/doc/local-authority/30UN,Shared Financial Services,Financial,4816,arp18,06/08/2018,0000440310,"1,208.25",Revenue,GLOBAL PAYMENTS (GPUK LLP),131178
South Ribble Council,http://statistics.data.gov.uk/doc/local-authority/30UN,Shared Financial Services,Financial,4816,,06/08/2018,0000440310,7.00,Revenue,GLOBAL PAYMENTS (GPUK LLP),131178
South Ribble Council,http://statistics.data.gov.uk/doc/local-authority/30UN,Shared Financial Services,Financial,4816,Apr-18,06/08/2018,0000440311,"2,571.30",Revenue,GLOBAL PAYMENTS (GPUK LLP),131178
South Ribble Council,http://statistics.data.gov.uk/doc/local-authority/30UN,Shared Financial Services,Financial,4816,,06/08/2018,0000440311,7.00,Revenue,GLOBAL PAYMENTS (GPUK LLP),131178
South Ribble Council,http://statistics.data.gov.uk/doc/local-authority/30UN,Shared Financial Services,Financial,4816,Apr-18,06/08/2018,0000440312,"2,051.75",Revenue,GLOBAL PAYMENTS (GPUK LLP),131178
South Ribble Council,http://statistics.data.gov.uk/doc/local-authority/30UN,Shared Financial Services,Financial,4816,,06/08/2018,0000440312,7.00,Revenue,GLOBAL PAYMENTS (GPUK LLP),131178
South Ribble Council,http://statistics.data.gov.uk/doc/local-authority/30UN,Shared Financial Services,Financial,4816,mar18,06/08/2018,0000440336,796.71,Revenue,GLOBAL PAYMENTS (GPUK LLP),131178
South Ribble Council,http://statistics.data.gov.uk/doc/local-authority/30UN,Shared Financial Services,Financial,4816,,06/08/2018,0000440336,7.00,Revenue,GLOBAL PAYMENTS (GPUK LLP),131178
South Ribble Council,http://statistics.data.gov.uk/doc/local-authority/30UN,Shared Financial Services,Financial,4816,Mar-18,06/08/2018,0000440337,"2,975.47",Revenue,GLOBAL PAYMENTS (GPUK LLP),131178
South Ribble Council,http://statistics.data.gov.uk/doc/local-authority/30UN,Shared Financial Services,Financial,4816,,06/08/2018,0000440337,7.00,Revenue,GLOBAL PAYMENTS (GPUK LLP),131178
South Ribble Council,http://statistics.data.gov.uk/doc/local-authority/30UN,Shared Financial Services,Financial,4816,Mar-18,06/08/2018,0000440338,"2,776.60",Revenue,GLOBAL PAYMENTS (GPUK LLP),131178
South Ribble Council,http://statistics.data.gov.uk/doc/local-authority/30UN,Shared Financial Services,Financial,4816,,06/08/2018,0000440338,7.00,Revenue,GLOBAL PAYMENTS (GPUK LLP),131178
South Ribble Council,http://statistics.data.gov.uk/doc/local-authority/30UN,Housing,Cap Grant- Improve Grants,C570,Grant payment towards the cost of supply and installation of new boiler at ADDRESS REDACTED total cost 2816.80. Disrepair,08/08/2018,0000441245,"1,000.00",Revenue,GOS Heating Ltd,131387
South Ribble Council,http://statistics.data.gov.uk/doc/local-authority/30UN,Housing,Cap Grant- Improve Grants,C570,DFG WORKS TO BATHROOM AT ADDRESS REDACTED COST 4143.00,22/08/2018,0000441617,"4,143.00",Revenue,GOS Heating Ltd,131387
South Ribble Council,http://statistics.data.gov.uk/doc/local-authority/30UN,Housing,Contributions,4730,Gas servicing for winter warmth scheme 2018/2019,24/08/2018,0000441739,330.00,Revenue,GOS Heating Ltd,131387
South Ribble Council,http://statistics.data.gov.uk/doc/local-authority/30UN,Property Services,Rep & Maint Premises,2020,,08/08/2018,0000441300,150.00,Revenue,GRAHAM SCHOFIELD ASSOCIATES,00035334
South Ribble Council,http://statistics.data.gov.uk/doc/local-authority/30UN,Property Services,Rep & Maint Premises,2020,,08/08/2018,0000441300,225.00,Revenue,GRAHAM SCHOFIELD ASSOCIATES,00035334
South Ribble Council,http://statistics.data.gov.uk/doc/local-authority/30UN,Area 3 - Parks/Leyland East West,Capital Expenditure,C230,Paint existing goal to match in with new goal on kick about area.,15/08/2018,0000441200,495.00,Revenue,Groundwork Landscapes Ltd,132329
South Ribble Council,http://statistics.data.gov.uk/doc/local-authority/30UN,Area 3 - Parks/Leyland East West,Capital Expenditure,C230,"Improvement of Ball Court, Dob Lane, Walmer Bridge",17/08/2018,0000441397,"19,143.50",Revenue,Groundwork Landscapes Ltd,132329
South Ribble Council,http://statistics.data.gov.uk/doc/local-authority/30UN,Area 3 - Parks/Leyland East West,Grounds Maint Cntrctrs Chgs,4657,Carpet repair under gyrospire on Withy Grove playground,08/08/2018,0000441088,450.00,Revenue,GROUNDWORK LEISURE SERVICES LTD,130104
South Ribble Council,http://statistics.data.gov.uk/doc/local-authority/30UN,Area 2 - Waste Transport/Eastern & Central Teams,Materials General,4040,Various parts,01/08/2018,0000441186,357.45,Revenue,H & J SERVICES LTD,00114446
South Ribble Council,http://statistics.data.gov.uk/doc/local-authority/30UN,Neighbourhood Admin & Support,Vehicle Running Costs,3132,15000ltr diesel @ 104.62ppl,13/08/2018,0000441489,"15,693.00",Revenue,Hall Fuels trading name of WFL (UK) Ltd,00116758
South Ribble Council,http://statistics.data.gov.uk/doc/local-authority/30UN,Neighbourhood Admin & Support,Vehicle Running Costs,3132,"12,000 LITRES DIESEL (@105.19 pence per litre)",24/08/2018,0000441721,"12,624.00",Revenue,Hall Fuels trading name of WFL (UK) Ltd,00116758
South Ribble Council,http://statistics.data.gov.uk/doc/local-authority/30UN,Neighbourhood Admin & Support,Vehicle Running Costs,3134,2500 LITRES GAS OIL (@59.28 pence per litre),24/08/2018,0000441723,"1,481.66",Revenue,Hall Fuels trading name of WFL (UK) Ltd,00116758
South Ribble Council,http://statistics.data.gov.uk/doc/local-authority/30UN,HR & Communications,Other Expenses,463D,"Saturday 21st July 2018 Hot and Cold buffet for 120 - 150 people  Table to be set up with square tables, Hotel to provide linen",13/08/2018,0000441453,"3,215.42",Revenue,Hallmark Hotel Preston Leyland,00090117
South Ribble Council,http://statistics.data.gov.uk/doc/local-authority/30UN,HR & Communications,Advertising,4848,PHOTOGRAPHS FOR SRBC ACTIVE CAMPS AT NORTHBROOK PRIMARY (HALF DAY) TUESDAY 7 AUGUST 2018,08/08/2018,0000441408,250.00,Revenue,IAN ROBINSON,132041
South Ribble Council,http://statistics.data.gov.uk/doc/local-authority/30UN,HR & Communications,Advertising,4848,GENERAL MUSEUM SHOTS TO UPDAT FILE PICTURES FOR SOCIAL MEDIA,22/08/2018,0000441495,50.00,Revenue,IAN ROBINSON,132041
South Ribble Council,http://statistics.data.gov.uk/doc/local-authority/30UN,HR & Communications,Advertising,4848,WW1 SOLDIER MEDALS,22/08/2018,0000441495,100.00,Revenue,IAN ROBINSON,132041
South Ribble Council,http://statistics.data.gov.uk/doc/local-authority/30UN,HR & Communications,Advertising,4848,GIANT VEGGIE PATCH,22/08/2018,0000441495,100.00,Revenue,IAN ROBINSON,132041
South Ribble Council,http://statistics.data.gov.uk/doc/local-authority/30UN,Information Services,Peripherals,4248,Commercial Premises App annual maintenance for period 31/08/18 - 30/08/19,13/08/2018,0000441501,623.40,Revenue,IDOX PLC,00104485
South Ribble Council,http://statistics.data.gov.uk/doc/local-authority/30UN,Information Services,Peripherals,4245,PA v3.x upgrade package,15/08/2018,0000441548,"1,025.00",Revenue,IDOX PLC,00104485
South Ribble Council,http://statistics.data.gov.uk/doc/local-authority/30UN,Information Services,Peripherals,4245,2 x Technical Consultancy - half day per system.  As per quote ref: South Ribble PA Work 100718,15/08/2018,0000441548,950.00,Revenue,IDOX PLC,00104485
South Ribble Council,http://statistics.data.gov.uk/doc/local-authority/30UN,Information Services,Peripherals,4248,Service Requests App Annual Maintenance for period 30/09/18 - 29/09/19,29/08/2018,0000441770,623.40,Revenue,IDOX PLC,00104485
South Ribble Council,http://statistics.data.gov.uk/doc/local-authority/30UN,Revenues Plus,Professional Fees,4510,"RV Finder - Everything Everywhere Site, ADDRESS REDACTED",08/08/2018,0000441104,770.00,Revenue,Inform CPI Ltd,131666
South Ribble Council,http://statistics.data.gov.uk/doc/local-authority/30UN,Area 3 - Parks/Leyland East West,Grounds Maint Cntrctrs Chgs,4657,800no TRUCKPAVE 80 TILES,22/08/2018,0000441657,"5,296.00",Revenue,JEWSON LTD,130263
South Ribble Council,http://statistics.data.gov.uk/doc/local-authority/30UN,Regeneration,Other Misc,4861,Purchase of 6 shields and engraving for Penwortham in Bloom. As per example given,01/08/2018,0000439366,400.00,Revenue,JOHN HARRISON SPORTS LTD,00023278
South Ribble Council,http://statistics.data.gov.uk/doc/local-authority/30UN,Regeneration,Other Misc,4861,Purchase of 6 x Trophies as part of Western Parishes in Bloom. As per attached.,01/08/2018,0000439367,400.00,Revenue,JOHN HARRISON SPORTS LTD,00023278
South Ribble Council,http://statistics.data.gov.uk/doc/local-authority/30UN,Regeneration,Advertising,4842,Purchase of 8 Eastern Parish in Bloom Trophies with initial engraving as agreed at 80 each. See attached paperwork,01/08/2018,0000439368,400.00,Revenue,JOHN HARRISON SPORTS LTD,00023278
South Ribble Council,http://statistics.data.gov.uk/doc/local-authority/30UN,Planning,Advertising,4841,Press notices for planning applications 2018/19,08/08/2018,0000441087,702.00,Revenue,JOHNSTON PUBLISHING (NORTH WEST),00011345
South Ribble Council,http://statistics.data.gov.uk/doc/local-authority/30UN,Planning,Advertising,4841,Press notices for planning applications 2018/19,08/08/2018,0000441274,459.00,Revenue,JOHNSTON PUBLISHING (NORTH WEST),00011345
South Ribble Council,http://statistics.data.gov.uk/doc/local-authority/30UN,Planning,Advertising,4841,Press notices for planning applications 2018/19,08/08/2018,0000441303,540.00,Revenue,JOHNSTON PUBLISHING (NORTH WEST),00011345
South Ribble Council,http://statistics.data.gov.uk/doc/local-authority/30UN,Planning,Advertising,4841,Press notices for planning applications 2018/19,17/08/2018,0000441363,567.00,Revenue,JOHNSTON PUBLISHING (NORTH WEST),00011345
South Ribble Council,http://statistics.data.gov.uk/doc/local-authority/30UN,Development Enterprise & Comm Mgnt,Consultancy Fees,4541,"Consultancy - Open Space, Sport and Recreation Assessment for Central Lancashire  84,700 + VAT",03/08/2018,0000441233,"25,410.00",Revenue,KNIGHT KAVANAGH & PAGE LTD,131981
South Ribble Council,http://statistics.data.gov.uk/doc/local-authority/30UN,Area 3 - Parks/Leyland East West,Grounds Maint Cntrctrs Chgs,4657,Base Plates for Springy Toys with Fixings as per Quote no SQ240437.,15/08/2018,0000441559,245.00,Revenue,KOMPAN LTD,00026026
South Ribble Council,http://statistics.data.gov.uk/doc/local-authority/30UN,Area 3 - Parks/Leyland East West,Grounds Maint Cntrctrs Chgs,4657,Base Plates for Springy Toys with Fixings as per Quote no SQ240437.,15/08/2018,0000441559,245.00,Revenue,KOMPAN LTD,00026026
South Ribble Council,http://statistics.data.gov.uk/doc/local-authority/30UN,Information Services,Peripherals,4241,Dell Latitude 5000 Notebook @ 675.00 each; 3 x 1Y NBD TO 5Y NBD UK @ 120.00 each and 3 x Dell Urban Briefcase 15,01/08/2018,0000441201,"2,452.50",Revenue,Kuiper Technology Ltd,132547
South Ribble Council,http://statistics.data.gov.uk/doc/local-authority/30UN,Environmental Health,Other Misc,4851,Lancashire FA Room Hire on 18.7.18 as per NAME REDACTED,22/08/2018,0000441600,960.00,Revenue,LANCASHIRE FOOTBALL ASSOCIATION LTD,00028066
South Ribble Council,http://statistics.data.gov.uk/doc/local-authority/30UN,Environmental Health,Other Misc,4851,room,22/08/2018,0000441600,190.00,Revenue,LANCASHIRE FOOTBALL ASSOCIATION LTD,00028066
South Ribble Council,http://statistics.data.gov.uk/doc/local-authority/30UN,Area 2 - Waste Transport/Eastern & Central Teams,Materials General,4040,1000 LITRES HYDRAULIC TYPE 32,22/08/2018,0000441611,730.00,Revenue,LANCASHIRE OILS LTD,131167
South Ribble Council,http://statistics.data.gov.uk/doc/local-authority/30UN,Area 2 - Waste Transport/Eastern & Central Teams,Waste Disposal Charges,5112,April 2018 -  Incineration of Clinical Waste,13/08/2018,0000441433,564.30,Revenue,LANCASHIRE TEACHING FT,00120715
South Ribble Council,http://statistics.data.gov.uk/doc/local-authority/30UN,Planning,Other Misc,485R,refund plan app,29/08/2018,0000441459,308.00,Revenue,LANCS COUNTY COUNCIL,00041645
South Ribble Council,http://statistics.data.gov.uk/doc/local-authority/30UN,Legal,Other Local Authorities,4530,LAND CHARGES - JULY 2018,15/08/2018,0000441553,"1,252.50",Revenue,LANCS COUNTY COUNCIL,00041645
South Ribble Council,http://statistics.data.gov.uk/doc/local-authority/30UN,Revenues Plus,Balance Sheet,0008,Refund of monies incorrectly paid to us,17/08/2018,0000441562,"1,646.40",Revenue,LANCS COUNTY COUNCIL,00041645
South Ribble Council,http://statistics.data.gov.uk/doc/local-authority/30UN,Housing,Cap Grant- Improve Grants,C570,SUPPLY AND INSTALL STAIRLIFT AT ADDRESS REDACTED AS PER YOUR QUOTE OF - 4304.00,22/08/2018,0000441620,"2,804.00",Revenue,LANCS COUNTY COUNCIL,00041645
South Ribble Council,http://statistics.data.gov.uk/doc/local-authority/30UN,Housing,Cap Expend Other,C750,"DFG WORKS TO ORDER STAIRLIFT AS PER QUOTE SUPPLIED BY LCC OF 2601.00 COST OF GRANT 2601.00",22/08/2018,0000441621,"2,601.00",Revenue,LANCS COUNTY COUNCIL,00041645
South Ribble Council,http://statistics.data.gov.uk/doc/local-authority/30UN,Legal,Other Local Authorities,4530,LAND CHARGES - JUNE 2018,22/08/2018,0000441681,"1,146.00",Revenue,LANCS COUNTY COUNCIL,00041645
South Ribble Council,http://statistics.data.gov.uk/doc/local-authority/30UN,Planning,Printing,4125,Lease Rental for 11.06.18 - 10.06.19,08/08/2018,0000441330,"1,426.25",Revenue,LDF FINANCE No1 LTD,131373
South Ribble Council,http://statistics.data.gov.uk/doc/local-authority/30UN,Scrutiny,Consultancy Fees,4541,"To: Deep clean, sanitise and deodorise 3ed Floor office carpets",22/08/2018,0000441590,825.00,Revenue,LEYLAND CLEANING SERVICES,00002338
South Ribble Council,http://statistics.data.gov.uk/doc/local-authority/30UN,Development Enterprise & Comm Mgnt,Other Misc,4851,Contribution to cost of generators for Leyland festival @ 335.70 Stall costs @ 110.00,03/08/2018,0000441059,445.70,Revenue,LEYLAND FESTIVAL,130076
South Ribble Council,http://statistics.data.gov.uk/doc/local-authority/30UN,HR & Communications,Subs to Statutory Bodies,4720,LG Comms Membership 2018/19 for NAME REDACTED,01/08/2018,0000441166,250.00,Revenue,LGcomms,132606
South Ribble Council,http://statistics.data.gov.uk/doc/local-authority/30UN,HR & Communications,Other Misc,4851,172 X DRIVER MANAGEMENT FEES,24/08/2018,0000441718,825.60,Revenue,LICENCE BUREAU LIMITED,131943
South Ribble Council,http://statistics.data.gov.uk/doc/local-authority/30UN,HR & Communications,Other Misc,4851,101 X DVLA ELECTRONIC FEES,24/08/2018,0000441718,60.70,Revenue,LICENCE BUREAU LIMITED,131943
South Ribble Council,http://statistics.data.gov.uk/doc/local-authority/30UN,Environmental Health,Other Misc,4851,Visual Scribe Event as per NAME REDACTED,01/08/2018,0000441177,500.00,Revenue,LUCY WRAY / THRIFT DESIGN,132584
South Ribble Council,http://statistics.data.gov.uk/doc/local-authority/30UN,Area 3 - Parks/Leyland East West,Grounds Maint Cntrctrs Chgs,4657,100tons Play grade Sand - washed & Graded High Quality Silica Sand/None Staining/ Soft Texture @ 22.00 per tonne. Delivery,15/08/2018,0000441468,881.76,Revenue,M C & M A STEWART HAULAGE LTD,00035567
South Ribble Council,http://statistics.data.gov.uk/doc/local-authority/30UN,Property Services,Rep & Maint Premises,2020,"Please attend Active Pharma Supplies Ltd - no 2 Forward Ind Estate, Talbot Road, Leyland, PR25 2ZJ - Please do the repair",17/08/2018,0000441534,"2,100.00",Revenue,MAINCOAT LTD,00099244
South Ribble Council,http://statistics.data.gov.uk/doc/local-authority/30UN,HR & Communications,Advertising,4848,Taking photographs of the King`s Royal Hussars Homecoming Parade on Saturday 21st July 2018,22/08/2018,0000441632,250.00,Revenue,MARTIN BIRCHALL PHOTOGRAPHY,132599
South Ribble Council,http://statistics.data.gov.uk/doc/local-authority/30UN,Area 3 - Parks/Leyland East West,Grounds Maint Cntrctrs Chgs,4657,800No 2`` & 5 eighths handmade bricks,03/08/2018,0000441257,800.00,Revenue,MARTIN EDWARDS,00054768
South Ribble Council,http://statistics.data.gov.uk/doc/local-authority/30UN,Area 3 - Parks/Leyland East West,Grounds Maint Cntrctrs Chgs,4657,2No queen crow pots,03/08/2018,0000441257,160.00,Revenue,MARTIN EDWARDS,00054768
South Ribble Council,http://statistics.data.gov.uk/doc/local-authority/30UN,Area 3 - Parks/Leyland East West,Grounds Maint Cntrctrs Chgs,4657,"3No roll top pots- 12`` high Please deliver to Worden Park depot, Leyland PR25 1DJ. Please call NAME REDACTED",03/08/2018,0000441257,100.00,Revenue,MARTIN EDWARDS,00054768
South Ribble Council,http://statistics.data.gov.uk/doc/local-authority/30UN,Property Services,Rep & Maint Premises,2020,Moss Side Depot and repair the lock as requested and as shown on the email pictures - contact NAME REDACTED,24/08/2018,0000441716,90.00,Revenue,MASTER LOCK & SAFE LTD,00028749
South Ribble Council,http://statistics.data.gov.uk/doc/local-authority/30UN,Property Services,Rep & Maint Premises,2020,materials,24/08/2018,0000441716,160.00,Revenue,MASTER LOCK & SAFE LTD,00028749
South Ribble Council,http://statistics.data.gov.uk/doc/local-authority/30UN,Area 3 - Parks/Leyland East West,Capital Expenditure,C230,4 cubic meters RC35 mix,31/08/2018,0000441749,412.00,Revenue,MOORE READYMIX,00112998
South Ribble Council,http://statistics.data.gov.uk/doc/local-authority/30UN,Area 1 - Penwortham Western Parishes,Professional Fees,4521,PROVISION OF STRAY DOG SERVICE - TO COVER JULY 2018,08/08/2018,0000441314,626.30,Revenue,MORNINGSIDE KENNELS,00067755
South Ribble Council,http://statistics.data.gov.uk/doc/local-authority/30UN,Revenues Plus,External Contractors Charges,4575,Capita Benefits Northern User Group. catering for 55 people,01/08/2018,0000441105,385.00,Revenue,MOSS HOUSE FARM,00121808
South Ribble Council,http://statistics.data.gov.uk/doc/local-authority/30UN,Development Enterprise & Comm Mgnt,Other Misc,485R,reinbursiment of a license,29/08/2018,0000439584,275.90,Revenue,NAME REDACTED,132537
South Ribble Council,http://statistics.data.gov.uk/doc/local-authority/30UN,Development Enterprise & Comm Mgnt,Rep & Maint Premises,2020,Annual Contract for 2018 - 2019 for sweeping the various properties in Worden and Hurst Grange Parks Gardeners Cottage,03/08/2018,0000441051,55.00,Revenue,Mr Stuart Hardacre T/A Penwortham chimney Sweep,131451
South Ribble Council,http://statistics.data.gov.uk/doc/local-authority/30UN,Development Enterprise & Comm Mgnt,Rep & Maint Premises,2020,Annual Contract for 2018- 2019 for sweeping the various properties in Worden and Hurst Grange Parks 4 Farmyard Cottage,03/08/2018,0000441051,100.00,Revenue,Mr Stuart Hardacre T/A Penwortham chimney Sweep,131451
South Ribble Council,http://statistics.data.gov.uk/doc/local-authority/30UN,Development Enterprise & Comm Mgnt,Rep & Maint Premises,2020,Annual Contract for 2018 - 2019 for sweeping the various properties in Worden and Hurst Grange Parks 3 Farmyard Cottage,03/08/2018,0000441051,55.00,Revenue,Mr Stuart Hardacre T/A Penwortham chimney Sweep,131451
South Ribble Council,http://statistics.data.gov.uk/doc/local-authority/30UN,Development Enterprise & Comm Mgnt,Rep & Maint Premises,2020,"Annual Contract for 2018 - 2019 for sweeping the various properties in Worden and Hurst Grange Parks The Bothy, Worden Park",03/08/2018,0000441051,55.00,Revenue,Mr Stuart Hardacre T/A Penwortham chimney Sweep,131451
South Ribble Council,http://statistics.data.gov.uk/doc/local-authority/30UN,Development Enterprise & Comm Mgnt,Rep & Maint Premises,2020,Annual Contract for 2018 - 2019 for sweeping the various properties in Worden and Hurst Grange Parks North Lodge Worden Park,03/08/2018,0000441051,55.00,Revenue,Mr Stuart Hardacre T/A Penwortham chimney Sweep,131451
South Ribble Council,http://statistics.data.gov.uk/doc/local-authority/30UN,Development Enterprise & Comm Mgnt,Rep & Maint Premises,2020,Annual Contract for 2018 - 2019  for sweeping the various properties in Worden and Hurst Grange Parks Coach House,03/08/2018,0000441051,55.00,Revenue,Mr Stuart Hardacre T/A Penwortham chimney Sweep,131451
South Ribble Council,http://statistics.data.gov.uk/doc/local-authority/30UN,HR & Communications,Professional Fees,4510,Professional Charges for Services rendered in relation to Settlement Agreement - SC,08/08/2018,0000441232,300.00,Revenue,NAPTHENS LLP SOLICITORS,00104896
South Ribble Council,http://statistics.data.gov.uk/doc/local-authority/30UN,Area 2 - Waste Transport/Eastern & Central Teams,External Contractors Charges,4570,SPEC REPAIR - JFC10943 - PJ62UCG,17/08/2018,0000441599,270.00,Revenue,NAYLORS TRANSPORT (LEYLAND) ltd,00114828
South Ribble Council,http://statistics.data.gov.uk/doc/local-authority/30UN,Neighbourhood Admin & Support,Materials General,4040,SCHMIDT MINI SWEEPER BRUSHES (SWINGO) - 71107/1,24/08/2018,0000441734,766.72,Revenue,NORTHERN MUNICIPAL SPARES LTD,00117061
South Ribble Council,http://statistics.data.gov.uk/doc/local-authority/30UN,HR & Communications,Peripherals,4242,EXTENSION OF THE JOB EVALUATION AGREEMENT FOR A FURTHER 36 MONTHS - 29/09/2018 - 28/09/2019,24/08/2018,0000441745,"3,117.09",Revenue,NORTHGATE ARINSO UK LTD,00094414
South Ribble Council,http://statistics.data.gov.uk/doc/local-authority/30UN,Development Enterprise & Comm Mgnt,Advertising,4842,Design and production of Great War exhibition panels as specified   11 x panels (50.00 design  86 Printing) 136.00 each,15/08/2018,0000441502,"1,496.00",Revenue,NORWYN LTD,00118303
South Ribble Council,http://statistics.data.gov.uk/doc/local-authority/30UN,Development Enterprise & Comm Mgnt,Other Misc,4851,Printing of 3 images as specified (86) and manufacture of introductory board for exhibition (150),29/08/2018,0000441622,408.00,Revenue,NORWYN LTD,00118303
South Ribble Council,http://statistics.data.gov.uk/doc/local-authority/30UN,Area 1 - Penwortham Western Parishes,Professional Fees,4514,DEPLOYMENT OF OFFICERS JULY 2018,03/08/2018,0000441294,"1,410.26",Revenue,NSL LTD,00116868
South Ribble Council,http://statistics.data.gov.uk/doc/local-authority/30UN,Area 1 - Penwortham Western Parishes,Other Misc,4855,CASH COLLECTION JULY 2018,03/08/2018,0000441294,402.92,Revenue,NSL LTD,00116868
South Ribble Council,http://statistics.data.gov.uk/doc/local-authority/30UN,Area 1 - Penwortham Western Parishes,Professional Fees,4514,DEPLOYMENT OF OFFICERS JUNE 2018,15/08/2018,0000441492,"1,301.10",Revenue,NSL LTD,00116868
South Ribble Council,http://statistics.data.gov.uk/doc/local-authority/30UN,Area 1 - Penwortham Western Parishes,Other Misc,4855,CASH COLLECTION JUNE 2018,15/08/2018,0000441492,397.68,Revenue,NSL LTD,00116868
South Ribble Council,http://statistics.data.gov.uk/doc/local-authority/30UN,Planning,Agency Fees,1121,NAME REDACTED Consultant at 46p,13/08/2018,0000441473,"2,231.00",Revenue,Park Avenue Recruitment,132388
South Ribble Council,http://statistics.data.gov.uk/doc/local-authority/30UN,Planning,Agency Fees,1121,NAME REDACTED Consultant at 46p,31/08/2018,0000441851,"2,760.00",Revenue,Park Avenue Recruitment,132388
South Ribble Council,http://statistics.data.gov.uk/doc/local-authority/30UN,Property Services,External Contractors Charges,4570,Annual fire extinguisher service  - vehicle extinguishers 71 @ 2.89,03/08/2018,0000441215,205.19,Revenue,PENNINE FIRE & SAFETY LIMITED,00117281
South Ribble Council,http://statistics.data.gov.uk/doc/local-authority/30UN,Property Services,External Contractors Charges,4570,Recharge 1kg Dry Powder Extinguisher (5 x 12.50),03/08/2018,0000441215,62.50,Revenue,PENNINE FIRE & SAFETY LIMITED,00117281
South Ribble Council,http://statistics.data.gov.uk/doc/local-authority/30UN,Property Services,Operational Furniture & Equip,4010,1 new 2kg Dry Powder Extinguisher,03/08/2018,0000441215,19.80,Revenue,PENNINE FIRE & SAFETY LIMITED,00117281
South Ribble Council,http://statistics.data.gov.uk/doc/local-authority/30UN,Environmental Health,Professional Fees,4522,gov fee,03/08/2018,0000440934,484.00,Revenue,Personnel Checks,132574
South Ribble Council,http://statistics.data.gov.uk/doc/local-authority/30UN,Environmental Health,Professional Fees,4522,admin,03/08/2018,0000440934,146.63,Revenue,Personnel Checks,132574
South Ribble Council,http://statistics.data.gov.uk/doc/local-authority/30UN,Environmental Health,Professional Fees,4522,gov fee,03/08/2018,0000441182,484.00,Revenue,Personnel Checks,132574
South Ribble Council,http://statistics.data.gov.uk/doc/local-authority/30UN,Environmental Health,Professional Fees,4522,admin fee,03/08/2018,0000441182,146.63,Revenue,Personnel Checks,132574
South Ribble Council,http://statistics.data.gov.uk/doc/local-authority/30UN,Environmental Health,Professional Fees,4522,gov fee,29/08/2018,0000441741,264.00,Revenue,Personnel Checks,132574
South Ribble Council,http://statistics.data.gov.uk/doc/local-authority/30UN,Environmental Health,Professional Fees,4522,admion fee,29/08/2018,0000441741,79.98,Revenue,Personnel Checks,132574
South Ribble Council,http://statistics.data.gov.uk/doc/local-authority/30UN,Democratic Services,Other Misc,4851,3 X BOOKS OF CONDOLENCE FOR HRH THE QUEEN 2 BOOKS OF CONDOLENCE FOR HRH PRINCE PHILLIP,08/08/2018,0000441381,275.00,Revenue,Peter Doyle Bookbinding,131656
South Ribble Council,http://statistics.data.gov.uk/doc/local-authority/30UN,Chief Executive`s Management,Employee Related Insurance,1819,GROUP LIFE ASSURANCE SCHEME RENEWAL  - SCHEME NUMBER 8519 COVERING 2018/2019,03/08/2018,0000440995,"3,054.39",Revenue,PHOENIX LIFE LTD,00031532
South Ribble Council,http://statistics.data.gov.uk/doc/local-authority/30UN,Information Services,Peripherals,4247,"10 x HPE LTO-7 Ultrium (part code C7977A) @ 45.50 per tape, as per quote",13/08/2018,0000441365,455.00,Revenue,PMD MAGNETICS,00115063
South Ribble Council,http://statistics.data.gov.uk/doc/local-authority/30UN,Property Services,Licence Fees,4883,civic 2018/19 po35526 raised on wrong ac in error NAME REDACTED to cancel,08/08/2018,0000441292,242.15,Revenue,PPL PRS,132554
South Ribble Council,http://statistics.data.gov.uk/doc/local-authority/30UN,Property Services,Licence Fees,4883,leyland 2018/19,08/08/2018,0000441292,556.70,Revenue,PPL PRS,132554
South Ribble Council,http://statistics.data.gov.uk/doc/local-authority/30UN,Information Services,Stationery,4133,"60,000 sheets Evolution Everyday A4 80gm",01/08/2018,0000441159,307.80,Revenue,PREMIER PAPER GROUP LTD,00022606
South Ribble Council,http://statistics.data.gov.uk/doc/local-authority/30UN,Regeneration,Other Misc,4851,"Printing of 2,000 colour double sided A3 Penwortham Live 2018 schedules",15/08/2018,0000441325,277.32,Revenue,Preston City Council,131913
South Ribble Council,http://statistics.data.gov.uk/doc/local-authority/30UN,Regeneration,Advertising,4842,G-Fest Programme x 2000 150gsm silk carbon balanced A5,15/08/2018,0000441326,496.60,Revenue,Preston City Council,131913
South Ribble Council,http://statistics.data.gov.uk/doc/local-authority/30UN,Area 2 - Waste Transport/Eastern & Central Teams,Materials General,4040,TR190,08/08/2018,0000441391,643.95,Revenue,PRESTON TYRE SPECIALISTS,00109516
South Ribble Council,http://statistics.data.gov.uk/doc/local-authority/30UN,Area 2 - Waste Transport/Eastern & Central Teams,Materials General,4040,2 TYRES - RV14DTZ - JFC10966 - AW,15/08/2018,0000441522,494.48,Revenue,PRESTON TYRE SPECIALISTS,00109516
South Ribble Council,http://statistics.data.gov.uk/doc/local-authority/30UN,Democratic Services,Printing,4127,2018 HEF Annual Canvass   A) Initial Mailing,03/08/2018,0000441211,"8,675.81",Revenue,PRINT IMAGE NETWORK LTD,00089199
South Ribble Council,http://statistics.data.gov.uk/doc/local-authority/30UN,Information Services,Postage,4292,Blue Ink 789-BL,29/08/2018,0000441796,334.94,Revenue,Purchase Power,00093923
South Ribble Council,http://statistics.data.gov.uk/doc/local-authority/30UN,Information Services,Postage,4292,Black Ink - 78P-K,29/08/2018,0000441796,133.96,Revenue,Purchase Power,00093923
South Ribble Council,http://statistics.data.gov.uk/doc/local-authority/30UN,Information Services,Postage,4292,EZ Peel Tape 3pk,29/08/2018,0000441796,120.57,Revenue,Purchase Power,00093923
South Ribble Council,http://statistics.data.gov.uk/doc/local-authority/30UN,Information Services,Postage,4292,freight,29/08/2018,0000441796,9.95,Revenue,Purchase Power,00093923
South Ribble Council,http://statistics.data.gov.uk/doc/local-authority/30UN,Information Services,Postage,4292,underpayment,29/08/2018,0000441796,2.94,Revenue,Purchase Power,00093923
South Ribble Council,http://statistics.data.gov.uk/doc/local-authority/30UN,Information Services,Peripherals,4247,"Annual maintenance contract N2269003, as per equipment schedule, for period 23/08/18 - 22/08/19",13/08/2018,0000441439,550.00,Revenue,QUISS TECHNOLOGY PLC,00053594
South Ribble Council,http://statistics.data.gov.uk/doc/local-authority/30UN,Property Services,Capital Expenditure,C230,"RE-ROOFING WORKS TO FARMYARD COTTAGES, WORDEN PARK.  PROGRAMME AS AGREED",24/08/2018,0000441735,"3,762.00",Revenue,R W Mayor Ltd,132306
South Ribble Council,http://statistics.data.gov.uk/doc/local-authority/30UN,Property Services,Capital Expenditure,C230,materials,24/08/2018,0000441735,"13,338.00",Revenue,R W Mayor Ltd,132306
South Ribble Council,http://statistics.data.gov.uk/doc/local-authority/30UN,Area 3 - Parks/Leyland East West,Contract Hire & Lease Costs,3212,HIRE OF 3 TON EXCAVATOR AND 6 TON DUMPER - ON HIRE WEDNESDAY 4.7.18 FOR 1 DAYS HIRE ONLY.  ,13/08/2018,0000441412,305.00,Revenue,Readyplant Limited,131535
South Ribble Council,http://statistics.data.gov.uk/doc/local-authority/30UN,Area 3 - Parks/Leyland East West,Contract Hire & Lease Costs,3212,,13/08/2018,0000441412,11.70,Revenue,Readyplant Limited,131535
South Ribble Council,http://statistics.data.gov.uk/doc/local-authority/30UN,Property Services,Rep & Maint Premises,2020,"To clear out unit that tenants have vacated, to remove all the rubbish from the unit, to strip out redundant pipe work from the unit",03/08/2018,0000441090,720.00,Revenue,RED ROSE BUILDING MAINTENANCE,00085410
South Ribble Council,http://statistics.data.gov.uk/doc/local-authority/30UN,Property Services,Rep & Maint Premises,2020,materials,03/08/2018,0000441090,930.00,Revenue,RED ROSE BUILDING MAINTENANCE,00085410
South Ribble Council,http://statistics.data.gov.uk/doc/local-authority/30UN,Property Services,Rep & Maint Premises,2020,"clear out half of building due to flood damage, to supply labor and skips, to clear out half of the building on station Road",22/08/2018,0000441635,"2,950.00",Revenue,RED ROSE BUILDING MAINTENANCE,00085410
South Ribble Council,http://statistics.data.gov.uk/doc/local-authority/30UN,Housing,Cap Grant- Improve Grants,C570,DFG works for kitchen adaptation at ADDRESS REDACTED Pro care equipment quote 6222.00 and NAME REDACTED ,22/08/2018,0000441698,"6,875.50",Revenue,Richard Bargh Joinery,132567
South Ribble Council,http://statistics.data.gov.uk/doc/local-authority/30UN,Information Services,Lease Rental Charges,4036,,22/08/2018,0000441682,"1,492.80",Revenue,RICOH (UK) LTD,00082976
South Ribble Council,http://statistics.data.gov.uk/doc/local-authority/30UN,Information Services,Stationery,413A,01/5/18 to 31/7/18,24/08/2018,0000441683,"4,346.60",Revenue,RICOH (UK) LTD,00082976
South Ribble Council,http://statistics.data.gov.uk/doc/local-authority/30UN,Information Services,Lease Rental Charges,4036,1/8/18 to 31/10/18,24/08/2018,0000441683,"4,638.79",Revenue,RICOH (UK) LTD,00082976
South Ribble Council,http://statistics.data.gov.uk/doc/local-authority/30UN,Information Services,Stationery,413A,1/5/18 to 31/7/18,22/08/2018,0000441685,175.71,Revenue,RICOH (UK) LTD,00082976
South Ribble Council,http://statistics.data.gov.uk/doc/local-authority/30UN,Information Services,Lease Rental Charges,4036,1/8/18 to 31/10/18,22/08/2018,0000441685,334.19,Revenue,RICOH (UK) LTD,00082976
South Ribble Council,http://statistics.data.gov.uk/doc/local-authority/30UN,Area 3 - Parks/Leyland East West,Materials General,4040,48 x 5Ltrs Trustee Amenity Weedkiller,13/08/2018,0000441456,658.00,Revenue,RIGBY TAYLOR LTD,00033145
South Ribble Council,http://statistics.data.gov.uk/doc/local-authority/30UN,Area 3 - Parks/Leyland East West,Materials General,4040,48 x 5Ltrs Trustee Amenity Weedkiller,13/08/2018,0000441456,658.00,Revenue,RIGBY TAYLOR LTD,00033145
South Ribble Council,http://statistics.data.gov.uk/doc/local-authority/30UN,Area 2 - Waste Transport/Eastern & Central Teams,External Contractors Charges,4570,"Spec repairPJ62 UCMJFC 11031",08/08/2018,0000441278,315.00,Revenue,RTS Muni,132454
South Ribble Council,http://statistics.data.gov.uk/doc/local-authority/30UN,Neighbourhood Admin & Support,Grounds Maint Cntrctrs Chgs,4657,WORDEN PARK - PLAY 26 REPAIR TO NET BRIDGE ON WORDEN PARK,08/08/2018,0000441366,400.00,Revenue,RUSSELL LEISURE LTD,00033909
South Ribble Council,http://statistics.data.gov.uk/doc/local-authority/30UN,Revenues Plus,Professional Fees,4520,,29/08/2018,0000441557,250.00,Revenue,S R B C,00035046
South Ribble Council,http://statistics.data.gov.uk/doc/local-authority/30UN,Environmental Health,Other Misc,4851,Commonwealth Afternoon African Drums.,29/08/2018,0000440497,250.00,Revenue,SALSA NORTHWEST,132557
South Ribble Council,http://statistics.data.gov.uk/doc/local-authority/30UN,Property Services,Energy Costs,2303,1/6/18 to 30/6,01/08/2018,0000441191,327.94,Revenue,SCOTTISH HYDRO ELECTRIC,130051
South Ribble Council,http://statistics.data.gov.uk/doc/local-authority/30UN,Property Services,Energy Costs,2307,CCL,01/08/2018,0000441191,16.31,Revenue,SCOTTISH HYDRO ELECTRIC,130051
South Ribble Council,http://statistics.data.gov.uk/doc/local-authority/30UN,Property Services,Energy Costs,2303,1/6/18 to 30/6/18,01/08/2018,0000441193,"2,919.20",Revenue,SCOTTISH HYDRO ELECTRIC,130051
South Ribble Council,http://statistics.data.gov.uk/doc/local-authority/30UN,Property Services,Energy Costs,2307,CCL,01/08/2018,0000441193,154.51,Revenue,SCOTTISH HYDRO ELECTRIC,130051
South Ribble Council,http://statistics.data.gov.uk/doc/local-authority/30UN,Property Services,Energy Costs,2303,1/6/18 to 30/6/18,01/08/2018,0000441198,"1,490.51",Revenue,SCOTTISH HYDRO ELECTRIC,130051
South Ribble Council,http://statistics.data.gov.uk/doc/local-authority/30UN,Property Services,Energy Costs,2307,CCL,01/08/2018,0000441198,83.73,Revenue,SCOTTISH HYDRO ELECTRIC,130051
South Ribble Council,http://statistics.data.gov.uk/doc/local-authority/30UN,Property Services,Energy Costs,2303,1/6/18 to 30/6/18,01/08/2018,0000441207,987.79,Revenue,SCOTTISH HYDRO ELECTRIC,130051
South Ribble Council,http://statistics.data.gov.uk/doc/local-authority/30UN,Property Services,Energy Costs,2304,23/6/18 to 1/8/18,17/08/2018,0000441450,365.12,Revenue,SCOTTISH HYDRO ELECTRIC,130051
South Ribble Council,http://statistics.data.gov.uk/doc/local-authority/30UN,Property Services,Energy Costs,2307,CCL,17/08/2018,0000441450,23.48,Revenue,SCOTTISH HYDRO ELECTRIC,130051
South Ribble Council,http://statistics.data.gov.uk/doc/local-authority/30UN,Property Services,Energy Costs,2304,24/03/18 to 22/6/18,17/08/2018,0000441488,527.56,Revenue,SCOTTISH HYDRO ELECTRIC,130051
South Ribble Council,http://statistics.data.gov.uk/doc/local-authority/30UN,Property Services,Energy Costs,2307,CCL,17/08/2018,0000441488,29.13,Revenue,SCOTTISH HYDRO ELECTRIC,130051
South Ribble Council,http://statistics.data.gov.uk/doc/local-authority/30UN,Property Services,Energy Costs,2303,1/7/18 to 31/7/18,22/08/2018,0000441642,359.57,Revenue,SCOTTISH HYDRO ELECTRIC,130051
South Ribble Council,http://statistics.data.gov.uk/doc/local-authority/30UN,Property Services,Energy Costs,2307,CCL,22/08/2018,0000441642,18.00,Revenue,SCOTTISH HYDRO ELECTRIC,130051
South Ribble Council,http://statistics.data.gov.uk/doc/local-authority/30UN,Property Services,Energy Costs,2303,1/7/18 to 31/7/18,22/08/2018,0000441644,"3,081.21",Revenue,SCOTTISH HYDRO ELECTRIC,130051
South Ribble Council,http://statistics.data.gov.uk/doc/local-authority/30UN,Property Services,Energy Costs,2307,CCL,22/08/2018,0000441644,166.96,Revenue,SCOTTISH HYDRO ELECTRIC,130051
South Ribble Council,http://statistics.data.gov.uk/doc/local-authority/30UN,Property Services,Energy Costs,2303,1/7/18 to 31/7,22/08/2018,0000441646,"1,511.02",Revenue,SCOTTISH HYDRO ELECTRIC,130051
South Ribble Council,http://statistics.data.gov.uk/doc/local-authority/30UN,Property Services,Energy Costs,2307,CCL,22/08/2018,0000441646,85.09,Revenue,SCOTTISH HYDRO ELECTRIC,130051
South Ribble Council,http://statistics.data.gov.uk/doc/local-authority/30UN,Property Services,Energy Costs,2303,1/7/18 to 31/7/18,22/08/2018,0000441647,950.28,Revenue,SCOTTISH HYDRO ELECTRIC,130051
South Ribble Council,http://statistics.data.gov.uk/doc/local-authority/30UN,Property Services,Energy Costs,2307,CCL,22/08/2018,0000441647,50.84,Revenue,SCOTTISH HYDRO ELECTRIC,130051
South Ribble Council,http://statistics.data.gov.uk/doc/local-authority/30UN,Property Services,Energy Costs,2303,16/11/17 to 15/2/18,24/08/2018,0000441738,805.74,Revenue,SCOTTISH HYDRO ELECTRIC,130051
South Ribble Council,http://statistics.data.gov.uk/doc/local-authority/30UN,Property Services,Energy Costs,2307,CCL,24/08/2018,0000441738,37.32,Revenue,SCOTTISH HYDRO ELECTRIC,130051
South Ribble Council,http://statistics.data.gov.uk/doc/local-authority/30UN,Information Services,Peripherals,4245,"UPS maintenance contract renewal for period 01/09/18 - 31/08/19, as per quote ref. 28716",31/08/2018,0000441826,995.00,Revenue,SECURE POWER LTD,131336
South Ribble Council,http://statistics.data.gov.uk/doc/local-authority/30UN,Information Services,Peripherals,4245,"Generator maintenance contract renewal for period 01/09/18 - 31/08/19, as per quote ref. 28676",31/08/2018,0000441837,"2,385.00",Revenue,SECURE POWER LTD,131336
South Ribble Council,http://statistics.data.gov.uk/doc/local-authority/30UN,Healthy Communities,Consultancy Fees,4536,R & M for 2018/2019,31/08/2018,0000441636,"63,116.88",Revenue,SERCO LEISURE (OP) LTD,00094906
South Ribble Council,http://statistics.data.gov.uk/doc/local-authority/30UN,Healthy Communities,Consultancy Fees,4536,R & M for 2018/2019,31/08/2018,0000441637,"15,779.22",Revenue,SERCO LEISURE (OP) LTD,00094906
South Ribble Council,http://statistics.data.gov.uk/doc/local-authority/30UN,Information Services,Professional Fees,4520,Shredding of Confidential Waste 2018/19,22/08/2018,0000441602,412.48,Revenue,SHRED-IT LTD,00109134
South Ribble Council,http://statistics.data.gov.uk/doc/local-authority/30UN,Information Services,Professional Fees,4520,Shredding of Confidential Waste 2018/19,31/08/2018,0000441785,289.26,Revenue,SHRED-IT LTD,00109134
South Ribble Council,http://statistics.data.gov.uk/doc/local-authority/30UN,Healthy Communities,Consultancy Fees,4532,Leisure Services Fee 2018/2019,31/08/2018,0000441638,"66,558.24",Revenue,SOUTH RIBBLE COMMUNITY LEISURE LTD,00094210
South Ribble Council,http://statistics.data.gov.uk/doc/local-authority/30UN,Healthy Communities,Consultancy Fees,4532,Leisure Services Fee 2018/2019,31/08/2018,0000441639,"16,639.56",Revenue,SOUTH RIBBLE COMMUNITY LEISURE LTD,00094210
South Ribble Council,http://statistics.data.gov.uk/doc/local-authority/30UN,Shared Financial Services,Balance Sheet,0030,monthly deductions from payroll,03/08/2018,0000441319,752.00,Revenue,SOUTH RIBBLE LABOUR PARTY LOCAL GOVERNM,00120663
South Ribble Council,http://statistics.data.gov.uk/doc/local-authority/30UN,Property Services,Client Internal Charges,4590,2018 / 2019 fees for front end loader weekly exchange at Leyland Market,22/08/2018,0000441592,361.92,Revenue,SUEZ  RECYCLING AND REC UK LTD 80005291,00038920
South Ribble Council,http://statistics.data.gov.uk/doc/local-authority/30UN,Property Services,Client Internal Charges,4590,2018 / 2019 monthly rental fees for the RORO at Leyland Market,22/08/2018,0000441592,65.00,Revenue,SUEZ  RECYCLING AND REC UK LTD 80005291,00038920
South Ribble Council,http://statistics.data.gov.uk/doc/local-authority/30UN,Development Enterprise & Comm Mgnt,Other Misc,4851,Please supply 1000 metres of bunting @420 for Leyland Festival,08/08/2018,0000441315,350.00,Revenue,SUNSHINE EVENTS UK LTD,130852
South Ribble Council,http://statistics.data.gov.uk/doc/local-authority/30UN,Property Services,Operational Furniture & Equip,4010,To supply trolley for Catering/Caretaking,01/08/2018,0000441208,340.00,Revenue,System Hygiene Ltd,132495
South Ribble Council,http://statistics.data.gov.uk/doc/local-authority/30UN,Neighbourhood Admin & Support,Operational Furniture & Equip,4019,1 x CA6 bench with black metalwork and hardwood timber slats,29/08/2018,0000441742,755.00,Revenue,TAYLORMADE CASTINGS LIMITED,00109008
South Ribble Council,http://statistics.data.gov.uk/doc/local-authority/30UN,Neighbourhood Admin & Support,Operational Furniture & Equip,4019,Delivery charge,29/08/2018,0000441742,95.00,Revenue,TAYLORMADE CASTINGS LIMITED,00109008
South Ribble Council,http://statistics.data.gov.uk/doc/local-authority/30UN,Area 2 - Waste Transport/Eastern & Central Teams,Materials General,4040,"2 load stickers 
2 BEARINGS,
2 PINS
1 WINDOW PANEL

VN10DKL
JFC11033",08/08/2018,0000441417,423.73,Revenue,TERBERG MATEC UK LTD,00058625
South Ribble Council,http://statistics.data.gov.uk/doc/local-authority/30UN,Property Services,Rep & Maint Premises,2020,"1	DQFB057803	Freeway Meeting Table 2400 x 1000mm	White MFC Top Silver Frame			571.25	571.25 21	DQ002950	Pen Tray for NP",13/08/2018,0000441242,"1,793.15",Revenue,The Senator International Ltd,132436
South Ribble Council,http://statistics.data.gov.uk/doc/local-authority/30UN,Legal,Publications,4142,aldridge R57,13/08/2018,0000441225,485.00,Revenue,THOMSON REUTERS,00034979
South Ribble Council,http://statistics.data.gov.uk/doc/local-authority/30UN,Legal,Publications,4142,prop law bulletin,13/08/2018,0000441424,812.00,Revenue,THOMSON REUTERS,00034979
South Ribble Council,http://statistics.data.gov.uk/doc/local-authority/30UN,Information Services,Peripherals,4247,Cat 6A Cabling as per quote ref. TC1475/18 Rev 1,22/08/2018,0000441623,"1,116.00",Revenue,TIS Networks,132417
South Ribble Council,http://statistics.data.gov.uk/doc/local-authority/30UN,Housing,Cap Grant- Improve Grants,C570,GRANT PAYMENT TOWARDS COST SUPPLY INSTALLATION OF EXTERNAL WALL INSULATION TO ADDRESS REDACTED,22/08/2018,0000441627,"4,000.00",Revenue,Trade Energy,132102
South Ribble Council,http://statistics.data.gov.uk/doc/local-authority/30UN,Property Services,Operational Furniture & Equip,4012,2018 / 2019 annual contract for the monthly rental of hot drinks machines at the civic centre including environmental charge.,13/08/2018,0000441367,322.09,Revenue,VENDING ENTERPRISES,00101501
South Ribble Council,http://statistics.data.gov.uk/doc/local-authority/30UN,Information Services,Peripherals,4269,"Annual PO for ISDN lines, line rentals & call charges 01/04/18 - 31/03/19",01/08/2018,0000441234,824.36,Revenue,VODAFONE RE:CABLE & WIRELESS UK,130810
South Ribble Council,http://statistics.data.gov.uk/doc/local-authority/30UN,Information Services,Peripherals,4269,"Annual PO for ISDN lines, line rentals & call charges 01/04/18 - 31/03/19",31/08/2018,0000441821,715.16,Revenue,VODAFONE RE:CABLE & WIRELESS UK,130810
South Ribble Council,http://statistics.data.gov.uk/doc/local-authority/30UN,Area 2 - Waste Transport/Eastern & Central Teams,External Contractors Charges,4570,VTG10 (MODIFICATION TO BRAKING SYSTEM) JFC10639 - VX18KLC - TH,31/08/2018,0000440486,27.00,Revenue,VOSA,00116839
South Ribble Council,http://statistics.data.gov.uk/doc/local-authority/30UN,Area 2 - Waste Transport/Eastern & Central Teams,External Contractors Charges,4570,VTG10 (MODIFICATION TO BRAKING SYSTEM) JFC10640 - PJ62UCM - TH,31/08/2018,0000440486,27.00,Revenue,VOSA,00116839
South Ribble Council,http://statistics.data.gov.uk/doc/local-authority/30UN,Area 2 - Waste Transport/Eastern & Central Teams,External Contractors Charges,4570,VTG10 (MODIFICATION TO BRAKING SYSTEM) JFC10641 - YP11CFM - TH,31/08/2018,0000440486,27.00,Revenue,VOSA,00116839
South Ribble Council,http://statistics.data.gov.uk/doc/local-authority/30UN,Area 2 - Waste Transport/Eastern & Central Teams,External Contractors Charges,4570,VTG10 (MODIFICATION TO BRAKING SYSTEM) JFC10642 - PO13UUM - TH,31/08/2018,0000440486,27.00,Revenue,VOSA,00116839
South Ribble Council,http://statistics.data.gov.uk/doc/local-authority/30UN,Area 2 - Waste Transport/Eastern & Central Teams,External Contractors Charges,4570,VTG10 (MODIFICATION TO BRAKING SYSTEM) JFC10643 - PJ62UCG -TH,31/08/2018,0000440486,27.00,Revenue,VOSA,00116839
South Ribble Council,http://statistics.data.gov.uk/doc/local-authority/30UN,Area 2 - Waste Transport/Eastern & Central Teams,External Contractors Charges,4570,VTG10 (MODIFICATION TO BRAKING SYSTEM) JFC10644 - PJ62UCH - TH,31/08/2018,0000440486,27.00,Revenue,VOSA,00116839
South Ribble Council,http://statistics.data.gov.uk/doc/local-authority/30UN,Area 2 - Waste Transport/Eastern & Central Teams,External Contractors Charges,4570,VTG10 (MODIFICATION TO BRAKING SYSTEM) JFC10645 - PJ62UCL - TH,31/08/2018,0000440486,27.00,Revenue,VOSA,00116839
South Ribble Council,http://statistics.data.gov.uk/doc/local-authority/30UN,Area 2 - Waste Transport/Eastern & Central Teams,External Contractors Charges,4570,VTG10 (MODIFICATION TO BRAKING SYSTEM) - JFC10646 - VO65KPX - TH,31/08/2018,0000440486,27.00,Revenue,VOSA,00116839
South Ribble Council,http://statistics.data.gov.uk/doc/local-authority/30UN,Area 2 - Waste Transport/Eastern & Central Teams,External Contractors Charges,4570,VTG10 (MODIFICATION TO BRAKING SYSTEM) JFC10647 - VO65KPY - TH,31/08/2018,0000440486,27.00,Revenue,VOSA,00116839
South Ribble Council,http://statistics.data.gov.uk/doc/local-authority/30UN,Area 2 - Waste Transport/Eastern & Central Teams,External Contractors Charges,4570,VTG10 (MODIFICATION TO BRAKING SYSTEM) JFC10648 - VO65KPZ - TH,31/08/2018,0000440486,27.00,Revenue,VOSA,00116839
South Ribble Council,http://statistics.data.gov.uk/doc/local-authority/30UN,Area 2 - Waste Transport/Eastern & Central Teams,External Contractors Charges,4570,VTG10 (MODIFICATION TO BRAKING SYSTEM) JFC10649 - VO65KRE - TH,31/08/2018,0000440486,27.00,Revenue,VOSA,00116839
South Ribble Council,http://statistics.data.gov.uk/doc/local-authority/30UN,Area 2 - Waste Transport/Eastern & Central Teams,External Contractors Charges,4570,VTG10 (MODIFICATION TO BRAKING SYSTEM) JFC10650 - VO65KRF - TH,31/08/2018,0000440486,27.00,Revenue,VOSA,00116839
South Ribble Council,http://statistics.data.gov.uk/doc/local-authority/30UN,Neighbourhood Admin & Support,Materials General,4046,Please supply summer bedding plants as per attached quotation. For delivery week commencing Monday 4th June 2018.,15/08/2018,0000441368,"3,953.16",Revenue,Walkers Oakfield Nurseries,131380
South Ribble Council,http://statistics.data.gov.uk/doc/local-authority/30UN,Property Services,Water Charges,2511,06/05/18 to 05/08/18,13/08/2018,0000441471,"2,214.02",Revenue,WATER PLUS,00029845
South Ribble Council,http://statistics.data.gov.uk/doc/local-authority/30UN,Property Services,Water Charges,2511,06/05/18 to 12/08/18,17/08/2018,0000441578,322.10,Revenue,WATER PLUS,00029845
South Ribble Council,http://statistics.data.gov.uk/doc/local-authority/30UN,Property Services,Water Charges,2511,21/6/18 TO 13/8/18,24/08/2018,0000441753,295.23,Revenue,WATER PLUS,00029845
South Ribble Council,http://statistics.data.gov.uk/doc/local-authority/30UN,Legal,Professional Fees,4510,Professional Services for Settlement Agreement - KM,01/08/2018,0000441168,814.50,Revenue,WEIGHTMANS LLP,00120867
South Ribble Council,http://statistics.data.gov.uk/doc/local-authority/30UN,Revenues Plus,Postage,4291,Mail Services Revenues July - Sept  2018,13/08/2018,0000441421,285.77,Revenue,WHISTL  UK LTD,131310
South Ribble Council,http://statistics.data.gov.uk/doc/local-authority/30UN,Revenues Plus,Postage,4291,Mail Services Revenues July - Sept  2018,24/08/2018,0000441610,258.64,Revenue,WHISTL  UK LTD,131310
South Ribble Council,http://statistics.data.gov.uk/doc/local-authority/30UN,Area 3 - Parks/Leyland East West,Grounds Maint Cntrctrs Chgs,4657,2x sets chains for cradle seat/shackles/iolite bushes (6`` chains) 2x sets chains with flat rubber seats/shackles/iolite bushes ,13/08/2018,0000441328,332.40,Revenue,WICKSTEED LEISURE LTD,00038661
South Ribble Council,http://statistics.data.gov.uk/doc/local-authority/30UN,Area 3 - Parks/Leyland East West,Grounds Maint Cntrctrs Chgs,4657,Carriage,13/08/2018,0000441328,28.25,Revenue,WICKSTEED LEISURE LTD,00038661
South Ribble Council,http://statistics.data.gov.uk/doc/local-authority/30UN,Area 2 - Waste Transport/Eastern & Central Teams,Operational Furniture & Equip,4010,M18FMTIWF12-502X 18V FUEL IMPACT WRENCH,08/08/2018,0000441261,329.00,Revenue,WILLIAM MOORE & SON (PRESTON) LTD,00028312
South Ribble Council,http://statistics.data.gov.uk/doc/local-authority/30UN,Area 2 - Waste Transport/Eastern & Central Teams,Operational Furniture & Equip,4010,M18CAG115PD-0 M18 FUEL 115MM GRINDER,08/08/2018,0000441261,129.00,Revenue,WILLIAM MOORE & SON (PRESTON) LTD,00028312
South Ribble Council,http://statistics.data.gov.uk/doc/local-authority/30UN,Area 2 - Waste Transport/Eastern & Central Teams,Operational Furniture & Equip,4010,M18BSX-0 RECIPROCATING SAW,08/08/2018,0000441261,149.00,Revenue,WILLIAM MOORE & SON (PRESTON) LTD,00028312
South Ribble Council,http://statistics.data.gov.uk/doc/local-authority/30UN,Area 2 - Waste Transport/Eastern & Central Teams,Operational Furniture & Equip,4010,Sawzall BI Torch ICE230 x 18 Tpi - 5pcs,08/08/2018,0000441261,24.38,Revenue,WILLIAM MOORE & SON (PRESTON) LTD,00028312
South Ribble Council,http://statistics.data.gov.uk/doc/local-authority/30UN,Area 2 - Waste Transport/Eastern & Central Teams,Operational Furniture & Equip,4010,M12CIW38-0 3/8DR IMPACT WRENCH,08/08/2018,0000441261,119.00,Revenue,WILLIAM MOORE & SON (PRESTON) LTD,00028312
South Ribble Council,http://statistics.data.gov.uk/doc/local-authority/30UN,Area 2 - Waste Transport/Eastern & Central Teams,Operational Furniture & Equip,4010,M12B2 M12 2.0AH BATTERY,08/08/2018,0000441261,29.00,Revenue,WILLIAM MOORE & SON (PRESTON) LTD,00028312
South Ribble Council,http://statistics.data.gov.uk/doc/local-authority/30UN,Area 3 - Parks/Leyland East West,Capital Expenditure,C230,120 Stainless Steel Plaques for Arboretum Trees,13/08/2018,0000441270,"1,425.00",Revenue,WOODSTOCK SIGNS,00039039
South Ribble Council,http://statistics.data.gov.uk/doc/local-authority/30UN,Property Services,Rep & Maint Premises,2020,"Please attend the walled garden worden park to repair the water leak underground, (lead pipes) near the vine house. ",15/08/2018,0000441478,276.84,Revenue,Wright Build Limited,131203
South Ribble Council,http://statistics.data.gov.uk/doc/local-authority/30UN,Property Services,Rep & Maint Premises,2020,Civic centre to repair the leak stop tap in the middle bar area of the Civic suite additional works discussed with NAME REDACTED,15/08/2018,0000441482,288.33,Revenue,Wright Build Limited,131203
South Ribble Council,http://statistics.data.gov.uk/doc/local-authority/30UN,Information Services,Peripherals,4247,Annual PO for Support & meter charges for 3 Xerox C400 printers April 18 - March 19,01/08/2018,0000441237,282.14,Revenue,XERETEC OFFICE SYSTEMS LTD,00109325
South Ribble Council,http://statistics.data.gov.uk/doc/local-authority/30UN,Scrutiny,Consultancy Fees,4541,"OPTION B  4 X Xerox C400V_dnm Delivery 1,800.00 ex VAT  Service pricing (Nil commitment inclusive of all replacement ",03/08/2018,0000441258,"1,800.00",Revenue,XERETEC OFFICE SYSTEMS LTD,00109325
South Ribble Council,http://statistics.data.gov.uk/doc/local-authority/30UN,Housing,Cap Grant- Improve Grants,C570,Grant payment towards the cost of supply and installation of external wall insulation to ADDRESS REDACTED Cost of Grant ,17/08/2018,0000441305,"3,752.28",Revenue,Yes Energy Solutions,132579
South Ribble Council,http://statistics.data.gov.uk/doc/local-authority/30UN,Housing,Cap Grant- Improve Grants,C570,Grant payment towards the cost of supply and installation of external wall insulation to ADDRESS REDACTED Cost of Grant,17/08/2018,0000441323,"4,000.00",Revenue,Yes Energy Solutions,132579
South Ribble Council,http://statistics.data.gov.uk/doc/local-authority/30UN,HR & Communications,Recruitment Expenses,1510,Recruitment Fee`s: Deputy Chief Executive & Senior Recruitment,08/08/2018,0000441180,"1,596.00",Revenue,Your Vacancy Ltd,132555
